[Event "16th IRI-chT Super League 2017"]
[Site "Sari"]
[Date "2017.10.17"]
[Round "7"]
[White "Mahdian, Anousha"]
[Black "Zahedifar, Anahita"]
[Result "0-1"]
[ECO "A11"]
[WhiteElo "1976"]
[BlackElo "2063"]
[Annotator "NA RC"]
[PlyCount "188"]
[EventDate "2017.??.??"]
[EventType "team-tourn"]
[EventCountry "IRI"]
[SourceTitle "playchess.com"]
[Source "ChessBase"]
[SourceQuality "1"]
[TimeControl "5400+30"]

{[%evp 83,188,-78,-70,-77,-64,-68,-63,-91,-81,-86,-89,-97,-98,-92,-82,-92,-75,-76,-69,-81,-81,-76,-69,-73,-65,32767,32767,32767,32767,-42,-28,-40,-15,-41,-38,-23,-11,-73,-17,-15,-15,-15,-11,-46,0,-36,-42,-215,-254,-219,-250,-278,-387,-485,-352,-253,-363,-490,-375,-569,-391,-524,0,-383,-747,-434,-397,-432,-1344,-1457,-525,-12837,-12839,-1181,-12838,-1340,-897,-12841,-1425,-1369,-1879,-12849,-788,-12842,-2105,-12840,-1741,-2754,-29981,-29976,-12844,-29991,-12846,-29992,-12847,-29993,-29992,-29992,-29993,-12847,-12847,-29992,-29993,-29993,-29994,-29994,-29995]} 1. Nf3 d5 2. g3 Nf6 3. Bg2 Bf5 4. c4 c6 5. O-O e6 6. cxd5 cxd5 7. Qb3 {A11: English Opening: 1...c6} Qc7 (7... Qb6 8. Qxb6 axb6 9. Nc3 Nc6 10. d3 Bc5 11. Bf4 O-O 12. Nh4 Bg6 13. Nxg6 hxg6 14. Bd2 Rfc8 15. Rfc1 Ng4 16. Be1 f5 17. Rab1 Kf7 18. a3 Nd4 19. e3 {½-½ (42) Rapport,R (2731)-Navara,D (2744) Prague 2016}) 8. d3 Nc6 9. Nc3 a6 10. Bf4 Bd6 11. Bxd6 Qxd6 12. e4 $146 ({Predecessor:} 12. Qxb7 O-O 13. Qb3 Rab8 14. Qc2 Rfc8 {½-½ (46) Wohl,A (2360)-Norris,D (2235) Jakarta 1993}) 12... dxe4 13. dxe4 Nxe4 14. Qxb7 Rb8 15. Qxa6 Nc5 16. Qa3 O-O 17. Na4 Nb4 18. Rad1 Qc6 19. Nxc5 Qxc5 20. Rc1 Qb6 21. Ne5 Nc2 22. Qf3 Qxb2 23. Nc6 Ra8 24. Ne7+ Kh8 25. Nxf5 exf5 26. Qe2 Rac8 27. a4 Qc3 28. Kh1 Qb3 29. Qb5 Qe6 30. Qd3 Rfd8 31. Qf3 Rc5 32. a5 Rdc8 33. a6 Qxa6 34. Rcd1 Qe6 35. Qd3 h6 36. Qd7 R5c7 37. Qd2 Na3 38. Rfe1 Qf6 39. Qf4 Rc4 40. Qf3 Nc2 41. Rf1 Rc3 42. Qb7 R3c7 43. Qd5 Nb4 44. Qb5 Na2 45. Qa5 Nc3 46. Rde1 {[#]} Ne4 $1 47. Qa3 Rc3 48. Qb2 Qg6 49. Re2 Qc6 50. Qb4 Rc1 51. Rfe1 Qc4 52. Qxc4 R8xc4 53. Kg1 R4c2 54. Bxe4 Rxe2 55. Rxc1 fxe4 56. Rc5 Re1+ 57. Kg2 f6 58. Rc8+ Kh7 59. g4 Kg6 60. Rc5 {[#]} (60. Rc7 $11 {remains equal.}) 60... Kf7 (60... e3 $1 $17 61. Rc3 exf2 62. Kxf2 Re5) 61. Rc7+ Kg8 62. Rc8+ Kh7 63. Ra8 Re2 64. Kf1 Rb2 65. Ra4 $2 {[#]} ({White should try} 65. Re8 $15) 65... e3 $1 66. fxe3 Rxh2 67. Kg1 Re2 68. Re4 Kg6 69. Re8 Kg5 70. Re7 g6 71. Re4 $1 Ra2 72. Rb4 Re2 $2 (72... Rd2 $19 73. Rf4 Re2) 73. Re4 Kh4 74. Kf1 Rh2 75. Kg1 Rh3 76. Kf2 Kg5 77. Rf4 Rh4 78. Kf3 f5 79. Ra4 Rxg4 80. Ra1 h5 81. Rh1 h4 82. Rh3 {[#]} Kf6 $19 (82... Rg3+ $142 $1 83. Rxg3+ hxg3 84. Kxg3 Kh5) 83. Kf2 Rb4 84. Rh1 g5 85. Ra1 Rb2+ 86. Kg1 g4 87. Ra4 h3 88. Ra1 g3 89. Re1 Ke5 90. Ra1 Ke4 91. Ra4+ Kxe3 92. Ra3+ Kf4 93. Ra4+ Kg5 94. Ra1 f4 0-1

[Event "16th IRI-chT Super League 2017"]
[Site "Sari"]
[Date "2017.10.19"]
[Round "9"]
[White "Talaneh, Motahareh"]
[Black "Zahedifar, Anahita"]
[Result "1-0"]
[ECO "B13"]
[WhiteElo "1480"]
[BlackElo "2063"]
[Annotator "NA RC"]
[PlyCount "129"]
[EventDate "2017.??.??"]
[EventType "team-tourn"]
[EventCountry "IRI"]
[SourceTitle "playchess.com"]
[Source "ChessBase"]
[SourceQuality "1"]
[TimeControl "5400+30"]

1. e4 c6 2. d4 d5 3. exd5 cxd5 4. Bd3 Nc6 5. c3 Qc7 6. Ne2 Bg4 7. O-O e6 8. Qe1 Bxe2 9. Qxe2 Nf6 10. g3 Bd6 11. f4 O-O 12. Nd2 Rae8 13. Nf3 g6 14. Ne5 Nd7 15. Qg4 f5 16. Qf3 Nf6 17. Be3 Na5 18. Qe2 Ne4 19. Rac1 Bxe5 20. fxe5 Rc8 21. Bh6 Rfd8 22. Bxe4 dxe4 23. g4 Qe7 24. gxf5 exf5 25. Qg2 Qe6 26. Rf2 Rd7 27. Rcf1 Rf7 28. Rd1 Rd8 29. Kh1 Nc4 30. Re1 Nb6 31. b3 Nd5 32. Qg5 Rdd7 33. c4 Nb4 34. Rd2 Qe7 35. Qe3 Qe8 36. Qc3 Nc6 37. Bf4 Rg7 38. Bh6 Rge7 39. Bg5 Rf7 40. Bf4 Qe7 41. d5 Nd8 42. e6 Nxe6 43. dxe6 Qxe6 44. Red1 Qc6 45. Kg1 Qc5+ 46. Be3 Qc7 47. Rxd7 Rxd7 48. Rxd7 Qxd7 49. Qd2 Qxd2 50. Bxd2 Kf7 51. Kf2 Kf6 52. Bf4 a6 53. h4 Ke6 54. Ke3 Kd7 55. Kd4 Kc6 56. b4 b6 57. a4 Kd7 58. Kd5 Ke7 59. Kc6 Ke6 60. Kxb6 h6 61. Kc6 g5 62. hxg5 hxg5 63. Bxg5 Ke5 64. b5 f4 65. b6 1-0

[Event "16th IRI-chT Super League 2017"]
[Site "Sari"]
[Date "2017.10.19"]
[Round "10"]
[White "Behzad Nazif, Parva"]
[Black "Zahedifar, Anahita"]
[Result "1/2-1/2"]
[ECO "B19"]
[WhiteElo "1957"]
[BlackElo "2063"]
[Annotator "NA RC"]
[PlyCount "113"]
[EventDate "2017.??.??"]
[EventType "team-tourn"]
[EventCountry "IRI"]
[SourceTitle "playchess.com"]
[Source "ChessBase"]
[SourceQuality "1"]
[TimeControl "5400+30"]

{[%evp 8,113,22,22,22,13,20,32767,32767,32767,32767,-6,5,-8,0,0,0,0,34,22,20,16,25,13,22,0,14,-5,0,0,23,8,8,0,79,85,67,72,98,89,110,18,35,37,68,81,95,53,174,188,200,32767,32767,83,91,104,90,32767,32767,127,32767,125,32767,32767,32767,109,32767,147,601,12,32767,0,10,0,11,0,0,0,0,0,0,32767,32767,32767,0,0,0,32767,32767,32767,0,0,0,0,0,0,0,0,0,0,0,0,0,0,0,0,0,0]} 1. e4 {[%emt 0:03:22]} c6 {[%emt 0:00:04]} 2. d4 {[%emt 0:00:08]} d5 {[%emt 0:00:09]} 3. Nc3 {[%emt 0:00:05]} dxe4 {[%emt 0:01:16]} 4. Nxe4 {[%emt 0:00:08]} Bf5 {[%emt 0:02:18]} 5. Ng3 {[%emt 0:00:09]} Bg6 $1 {[%emt 0:00:05]} 6. h4 {[%emt 0:00:08]} h6 {[%emt 0:00:14]} 7. Nf3 {[%emt 0:00:06]} Nd7 {[%emt 0:00:05]} 8. h5 {[%emt 0:00:07]} Bh7 {[%emt 0:00:01]} 9. Bd3 {[%emt 0:00:13]} Bxd3 {[%emt 0:00:16]} 10. Qxd3 {[%emt 0:00:07]} e6 {[%emt 0:00:31]} 11. Bd2 {[%emt 0:00:09]} Ngf6 {[%emt 0:00:23]} 12. O-O-O {[%emt 0:00:09]} Bd6 {[%emt 0:00:10]} 13. Ne4 {[%emt 0:00:09]} Bc7 {[%emt 0:00:18]} 14. Kb1 {[%emt 0:02:35] B19: Classical Caro-Kann: 4...Bf5 main line} Nxe4 {[%emt 0:02:40]} 15. Qxe4 {[%emt 0:00:14]} Nf6 {[%emt 0:00:02]} 16. Qe2 {[%emt 0:00:36]} Qd5 {[%emt 0:03:24]} 17. c4 {[%emt 0:04:19]} Qf5+ {[%emt 0:04:46] LiveBook: 3 Games} 18. Ka1 {[%emt 0:00:37] [#]} a5 $146 {[%emt 0:00:20]} ({Predecessor:} 18... Rd8 19. Rh4 c5 20. d5 O-O 21. g4 Nxg4 {0-1 (39) Debashis,D (2489)-Iturrizaga Bonelli,E (2625) Abu Dhabi 2015}) 19. Ne5 {[%emt 0:07:05]} c5 $1 {[%emt 0:06:55]} 20. Bc3 {[%emt 0:04:30]} Ne4 {[%emt 0:03:38]} (20... Qe4 $11 {keeps the balance.} 21. Qxe4 Nxe4) 21. g4 {[%emt 0:01:18]} Nxc3 {[%emt 0:00:55]} 22. bxc3 {[%emt 0:00:08]} (22. gxf5 $2 {loses.} Nxe2 23. fxe6 Bxe5 $19) 22... Qg5 {[%emt 0:04:06] [#]} 23. f4 $1 {[%emt 0:01:21]} Qe7 {[%emt 0:00:18]} 24. Rhe1 {[%emt 0:03:16]} (24. dxc5 $16 Rc8 25. Nd3) 24... cxd4 {[%emt 0:10:25]} 25. cxd4 {[%emt 0:00:47]} a4 {[%emt 0:00:41]} 26. c5 {[%emt 0:12:38]} O-O {[%emt 0:10:41]} 27. g5 Bxe5 {[%emt 0:09:11]} (27... hxg5 $14 28. fxg5 Qxg5) 28. Qxe5 {[%emt 0:13:48]} Rfd8 {[%emt 0:08:36]} 29. gxh6 {[%emt 0:01:41]} Qf6 {[%emt 0:00:06]} 30. Qxf6 {[%emt 0:05:51]} (30. hxg7 $18 Qxe5 31. fxe5 Kxg7 32. Kb2) 30... gxf6 {[%emt 0:00:01]} 31. Rg1+ {[%emt 0:00:31]} Kh8 {[%emt 0:05:03]} 32. Rg7 {[%emt 0:01:30]} Rd7 {[%emt 0:01:53]} 33. Kb2 {[%emt 0:08:17]} Rad8 {[%emt 0:03:39]} 34. Rdg1 {[%emt 0:07:05]} e5 {[%emt 0:05:55]} 35. fxe5 {[%emt 0:04:06]} fxe5 {[%emt 0:00:08]} 36. d5 {[%emt 0:02:20]} e4 {[%emt 0:04:01]} 37. d6 {[%emt 0:02:53]} e3 $2 {[%emt 0:03:05] [#]} (37... Re8 $16 38. Ka3 e3 39. Kxa4 e2) 38. Kc3 $2 {[%emt 0:02:31]} (38. h7 $1 $18 f5 39. Re7) 38... b6 {[%emt 0:00:32]} 39. Re1 {[%emt 0:02:58]} Re8 {[%emt 0:02:07]} 40. Kd4 {[%emt 0:01:14]} e2 {[%emt 0:00:40]} 41. Rg2 {[%emt 0:01:00]} bxc5+ {[%emt 0:00:54]} 42. Kxc5 {[%emt 0:00:08]} Rc8+ {[%emt 0:00:06]} 43. Kd5 {[%emt 0:00:23]} Rcd8 {[%emt 0:00:04]} 44. Rexe2 {[%emt 0:02:47]} Rxd6+ {[%emt 0:00:05]} 45. Kc5 {[%emt 0:00:07]} Rd5+ {[%emt 0:01:50]} 46. Kc4 {[%emt 0:00:35]} Rxh5 {[%emt 0:00:36]} 47. Ref2 {[%emt 0:01:14]} Rc8+ {[%emt 0:00:45]} 48. Kd4 {[%emt 0:00:39]} Rd8+ {[%emt 0:00:15]} 49. Kc4 {[%emt 0:00:05]} Rh4+ {[%emt 0:00:26]} 50. Kc3 {[%emt 0:00:13]} Rc8+ {[%emt 0:00:34]} 51. Kd3 {[%emt 0:00:17]} Rh3+ {[%emt 0:00:20]} 52. Kd4 {[%emt 0:00:20]} Rd8+ {[%emt 0:00:24]} 53. Kc4 {[%emt 0:00:05]} Rh4+ {[%emt 0:00:28]} 54. Kc3 {[%emt 0:00:04]} Rf8 {[%emt 0:02:23]} 55. Rf6 {[%emt 0:00:33]} Rc8+ {[%emt 0:00:12]} 56. Kd3 {[%emt 0:00:38]} Rh3+ {[%emt 0:00:52]} 57. Kd4 $11 {[%emt 0:00:18]} 1/2-1/2

[Event "16th IRI-chT Super League 2017"]
[Site "Sari"]
[Date "2017.10.20"]
[Round "11"]
[White "Zahedifar, Anahita"]
[Black "Lotfi, Aylar"]
[Result "1/2-1/2"]
[ECO "A41"]
[WhiteElo "2063"]
[BlackElo "1879"]
[Annotator "NA RC"]
[PlyCount "98"]
[EventDate "2017.??.??"]
[EventType "team-tourn"]
[EventCountry "IRI"]
[SourceTitle "playchess.com"]
[Source "ChessBase"]
[SourceQuality "1"]
[TimeControl "5400+30"]

{[%evp 10,98,8,1,14,3,12,6,0,3,23,-69,-22,-42,-37,-35,-34,-34,-41,-30,-39,-43,-48,-48,-37,-42,-44,-67,-9,-21,-12,-43,-26,-45,-20,-29,-19,-33,-39,-42,0,-8,21,23,30,32,26,25,53,0,0,-16,0,32767,32767,32767,32767,32767,32767,32767,32767,-39,32767,32767,32767,32767,32767,-28,-35,-29,-36,-40,-28,-33,0,-37,0,-35,0,-33,0,-49,0,-54,0,-45,0,-36,0,-35,1767]} 1. d4 {[%emt 0:00:00]} d6 {[%emt 0:00:19]} 2. c4 {[%emt 0:00:00]} e5 {[%emt 0:00:15]} 3. Nf3 {[%emt 0:00:00]} e4 {[%emt 0:04:01]} 4. Ng1 {[%emt 0:00:49]} f5 {[%emt 0:01:25]} 5. Nh3 {[%emt 0:02:20]} Nf6 {[%emt 0:06:06]} 6. Nc3 {[%emt 0:04:06]} Be7 {[%emt 0:04:35]} 7. e3 {[%emt 0:01:56]} c6 {[%emt 0:05:18]} 8. Nf4 {[%emt 0:01:49] A21: English Opening: 1...e5 2 Nc3} O-O {[%emt 0:01:33]} 9. h4 {[%emt 0:02:51]} Na6 {[%emt 0:03:29] LiveBook: 39 Games} 10. c5 {[%emt 0:08:37]} ({Better is} 10. h5 $11) (10. Be2 Nc7 11. Bd2 Ne6 12. d5 Nxf4 13. exf4 cxd5 14. cxd5 Bd7 15. Be3 b5 16. a3 a6 17. O-O Be8 18. Rc1 Bf7 {0-1 (32) Grigoriants,S (2563)-Bortnyk,O (2581) Tallinn 2016}) 10... d5 $146 {[%emt 0:24:53]} ({Predecessor:} 10... dxc5 11. Bc4+ Kh8 12. h5 b5 13. Ng6+ {1-0 (13) Camarena Gimenez,R (2160)-Gomez Cabrero,L Burjasot 1997}) 11. h5 {[%emt 0:07:53]} Nc7 {[%emt 0:26:38]} 12. b4 {[%emt 0:06:08]} Ne6 {[%emt 0:00:57]} 13. Nce2 {[%emt 0:01:55]} a5 {[%emt 0:04:08]} 14. bxa5 {[%emt 0:04:45]} Qxa5+ {[%emt 0:04:06]} 15. Bd2 {[%emt 0:00:26]} Qa3 {[%emt 0:04:37]} 16. Qb1 {[%emt 0:03:20]} Ng5 {[%emt 0:05:15]} 17. Bb4 {[%emt 0:01:23]} Qa7 {[%emt 0:00:53]} 18. a4 {[%emt 0:00:40]} Re8 {[%emt 0:03:22]} 19. a5 {[%emt 0:03:41]} Qb8 {[%emt 0:01:16]} 20. Nc3 {[%emt 0:04:09]} Ne6 {[%emt 0:03:33]} 21. g3 {[%emt 0:04:15]} Ng5 {[%emt 0:02:23]} 22. Be2 {[%emt 0:00:44]} Bd8 {[%emt 0:02:03]} 23. Qd1 {[%emt 0:04:11]} Bc7 {[%emt 0:00:46]} 24. Qa4 {[%emt 0:04:14]} Bxf4 {[%emt 0:01:43]} 25. gxf4 {[%emt 0:00:21]} Nf3+ {[%emt 0:00:28]} 26. Bxf3 $1 {[%emt 0:01:55]} exf3 {[%emt 0:00:00]} 27. O-O-O {[%emt 0:00:47]} Be6 {[%emt 0:00:51]} 28. Qc2 {[%emt 0:02:23]} Qc7 {[%emt 0:01:54]} 29. Rdg1 {[%emt 0:01:54]} Ne4 {[%emt 0:01:15]} 30. Nxe4 {[%emt 0:03:17]} dxe4 {[%emt 0:03:14]} 31. Bc3 {[%emt 0:06:39]} Bd5 {[%emt 0:00:41]} 32. Qb2 {[%emt 0:00:15]} Re7 {[%emt 0:04:52]} 33. Qb4 {[%emt 0:01:39]} Qd7 {[%emt 0:00:52]} 34. Kd2 {[%emt 0:03:12]} Qe8 {[%emt 0:01:03]} 35. h6 {[%emt 0:03:46]} g6 {[%emt 0:00:49]} 36. Rb1 {[%emt 0:00:08]} Qc8 {[%emt 0:01:42]} 37. Rb2 {[%emt 0:00:21]} Qf8 {[%emt 0:00:27]} 38. Qa4 {[%emt 0:00:40]} Ra7 {[%emt 0:00:44]} 39. Rb6 {[%emt 0:00:48]} Rd7 {[%emt 0:00:50]} 40. Kc2 {[%emt 0:01:47]} Qe7 {[%emt 0:01:18]} 41. Rbb1 {[%emt 0:03:18]} Qf8 {[%emt 0:00:10]} 42. Rb6 {[%emt 0:01:12]} Qe7 {[%emt 0:00:08]} 43. Qb4 {[%emt 0:00:33]} Qf8 {[%emt 0:00:38]} 44. Qa4 {[%emt 0:02:55]} Qe7 {[%emt 0:00:26]} 45. Qa1 {[%emt 0:01:48]} Qf8 {[%emt 0:00:19]} 46. Qb2 {[%emt 0:01:34]} Qe7 {[%emt 0:00:14]} 47. Qb4 {[%emt 0:01:03]} Qf8 {[%emt 0:00:10]} 48. Bd2 {[%emt 0:00:32]} Qe7 {[%emt 0:01:50]} 49. Qb2 {[%emt 0:00:30]} Qh4 $18 (49... Kf7 $15) 1/2-1/2